Workbook

Sheet Copyright
A1: Canadian Pacific’s Bid for Norfolk Southern
A2: Harvard Business School Case #216-057
A3: HBS Courseware 9-216-712
A6: This courseware was prepared by Professors Ben Esty and Scott Mayfield solely as the basis for class discussion. Cases are not intended to serve as endorsements, sources of primary data, or illustrations of effective or ineffective management. Copyright © 2016 President and Fellows of Harvard College. This publication may not be digitized, photocopied, or otherwise reproduced, posted, or transmitted, without the permission of Harvard Business School.

Sheet Questions - Session 2
B2: Go to the Premium Page and fill in the Red Items
B4: Question 1 - What is the effective price and the premium percent for offer 1
D6: Effective Price
D7: Premium Percent
D8: Closing Price
B10: Question 2 - What is the effective price and the premium percent for offer 2
D12: Effective Price
D13: Premium Percent
D14: Closing Price
B16: Question 3 - Why is the share price different than the offer price
C18: a. Because the market does not understand the value
C19: b. Because the value of the transaction is less
C20: c. Because synergies may not be realised
C21: d. Because there is a probability that the transaction will not be completed
C23: Answer (lower case) | F23: d
C27: With respect to the pre-merger operational improvements, which is true:
C29: a. If the pre-operational improvements can be made without the merger, they should not be included in synergies
C30: b. The pre-operational improvements are from the pressure of the merger and should be included as synergies
C31: c. Some of the savings come from fuel efficiency and this is driven by the combination
C32: d. Revenue increases would be driven by price increases and this is possible because of the merger
C34: Anwer (lower case) | F34: a
B36: Go to the Synergy Page
D37: Compute the synergy estimate as percent of salaries
B39: Answer the following with data in the synergy page
D41: Compute the NPV of Synergies
D42: Discount Rate
D43: Probability
D44: Tax Rate
D46: Compute the Value of Synergies versus Premium to CP Shareholders using 100%
B48: Question 5
D50: What is the NPV of Synergies pre tax
D52: What is the NPV of Synergies
D53: What is the NPV of Synergies with probability
D55: What is the NPV versus Synergies without out probability
D56: What is the NPV versus Synergies with probabilty

Sheet Premium
D1: Exhibit 9b Selected Stock Prices for Norfolk Southern and Canadian Pacific (in U.S. dollars)
D3: Period | F3: Timeline | H3: NS Stock Price | L3: CP Stock Price
D4: Beg End | F4: Event | H4: Beg | I4: End | J4: Change | L4: Beg | M4: End | N4: Change
D7: 10/01/15 - 11/06/15 | H7: 77.33 | I7: 79.87 | J7: 2.54 | L7: 146.36 | M7: 134.31 | N7: -12.05
D8: 11/06/15 - 11/09/15 | F8: Merger Rumors | H8: 79.87 | I8: 88.62 | J8: 8.75 | L8: 134.31 | M8: 142.17999 | N8: 7.86999
D9: 11/09/15 - 11/17/15 | H9: 88.62 | I9: 86.97 | J9: -1.65 | L9: 142.17999 | M9: 138.58 | N9: -3.59999
D10: 11/17/15 - 11/18/15 | F10: Initial CP Offer | H10: 86.97 | I10: 92.49 | J10: 5.52 | L10: 138.58 | M10: 146.64999 | N10: 8.06999
D11: 11/18/15 - 12/03/15 | H11: 92.49 | I11: 93.11 | J11: 0.62 | L11: 146.64999 | M11: 140.91 | N11: -5.73999
D12: 12/03/15 - 12/04/15 | F12: NS Rejects Offer | H12: 93.11 | I12: 92.06 | J12: -1.05 | L12: 140.91 | M12: 134.49001 | N12: -6.41999
D13: 12/04/15 - 12/07/15 | H13: 92.06 | I13: 91.52 | J13: -0.54 | L13: 134.49001 | M13: 130.48 | N13: -4.01001
D14: 12/07/15 - 12/08/15 | F14: Revised CP Offer | H14: 91.52 | I14: 86.32 | J14: -5.2 | L14: 130.48 | M14: 126.13 | N14: -4.35
D15: 12/08/15 - 12/18/15 | H15: 86.32 | I15: 84.27 | J15: -2.05 | L15: 126.13 | M15: 125.07 | N15: -1.06
D18: Source: Casewriter analysis using data from the Center for Research in Security Prices, accessed April 2016.
D21: NS Before Merger | H21: =I7 -> 79.87
D22: CP Before Merger | H22: =M7 -> 134.31
D23: Ratio of Price Before Merger | L23: 0.5946690492
B25: First Offer
D26: Date | H26: 2015-11-17
D27: Cash Offer 1 | H27: 46.72
D28: Exchange Offer | H28: 0.348
D29: CP Price - End of Day | L29: 146.64999
D30: Exchange Offer | L30: 51.03419652
D31: Total Offer | L31: 97.75419652
D33: Premium Percent | L33: 0.2239163205
D35: NS Share Price - End of Day | H35: =I10 -> 92.49
B37: Second Offer
D38: Date | H38: 2015-12-16
D39: Cash Offer 2 | H39: 32.86
D40: Exchange Offer | H40: 0.451
D41: CP Price at End of Day | H41: =M15 -> 125.07 | L41: 125.07
D42: Exchange Offer | H42: =H41*H40 -> 56.40657 | L42: 56.40657
D43: Total Offer | H43: =H39+H42 -> 89.26657 | L43: 89.26657
D45: Premium in Offer 2 | H45: =H43/H21-1 -> 0.1176483035 | L45: 0.1176483035
B47: Value of Premium
D48: Share Price Before Announcement | H48: =H21 -> 79.87
D49: NS Shares - Millions | H49: ='NS Historic ROIC'!O94 -> 301.4
D50: Market Capital Before - Millions USD | H50: =H49*H21 -> 24072.818 | L50: 24072.818
D52: Effective Price Realised in Offer 1 | H52: =H31 -> 0
D53: Market Capital Using Offer Value | H53: =H49*H31 -> 0 | L53: 29463.11483
D55: Premium - Millions USD | H55: =H53-H50 -> -24072.818 | L55: 5390.296831
D57: Fees | H57: 0.1
D58: Total Fees | H58: =H57*H50 -> 2407.2818
D60: Total Premium and Transaction Cost | H60: =H55+H58 -> -21665.5362 | L60: 7797.578631

Sheet Synergies
D3: Table A Projected Merger Benefits ($ millions)
E5: 2016 | F5: 2017 | G5: 2018 | H5: 2019 | I5: 2020 | J5: 2021
D8: Compensation and Benefits | E8: ='NS Historic ROIC'!O8 -> 2923
D9: Materials | E9: ='NS Historic ROIC'!O9 -> 2713
D10: Fuel | E10: ='NS Historic ROIC'!O10 -> 1087
D11: Total | E11: =SUM(E8:E10) -> 6723
D13: Net Operating Income | E13: ='NS Historic ROIC'!O14 -> 3133
D15: Pre-Merger Operational Improvements
D16: Phase-in (%) | E16: 0.17 | F16: 0.42 | G16: 0.67 | H16: 0.92 | I16: 1 | J16: 1
D17: Increase in EBIT | E17: 214.2 | F17: 529.2 | G17: 844.2 | H17: 1159.2 | I17: 1260 | J17: 1260
D19: Post-Merger Combination Synergies
D20: Phase-in (%) | E20: 0 | F20: 0 | G20: 0.25 | H20: 0.5 | I20: 0.75 | J20: 1
D21: Increase in EBIT | E21: 0 | F21: 0 | G21: 123.75 | H21: 247.5 | I21: 371.25 | J21: 495
D23: Projected Total Increase in CP-NS EBIT | E23: 214.2 | F23: 529.2 | G23: 967.95 | H23: 1406.7 | I23: 1631.25 | J23: 1755
D25: Percent of Compensation
D27: From ROIC | E27: ='NS Projections'!H59 -> 544.7040078 | F27: ='NS Projections'!I59 -> -987.8565107 | G27: ='NS Projections'!J59 -> -2273.397866 | H27: ='NS Projections'!K59 -> -3160.261292 | I27: ='NS Projections'!L59 -> -3249.560759 | J27: ='NS Projections'!M59 -> -3141.77197
D30: Source: Candian Pacific Presentation, "CP's Value Proposition," December 8, 2015, p.8.
D31: Note: The projections were on a pre-tax basis and were net of merger-related costs and other restructuring expenses.
B33: Valuation of Synergies
D34: Use Total | E34: TRUE
E36: 2015-11-01 | F36: 2016-07-01 | G36: =EDATE(F36,12) -> 2017-07-01 | H36: =EDATE(G36,12) -> 2018-07-01 | I36: 2019-07-01 | J36: 2020-07-01 | K36: 2021-07-01
D37: Total Savings | E37: 0 | F37: =IF($E$34,E23,E21) -> 214.2 | G37: =IF($E$34,F23,F21) -> 529.2 | H37: 967.95 | I37: 1406.7 | J37: 1631.25 | K37: 1755
D39: Discount Rate | E39: 0.07
D41: PV without Terminal Value (XNPV) | E41: =XNPV(E39,E37:K37,E36:K36) -> 4968.87633 | I41: 4968.87633
D43: Terminal Discount Rate | E43: =E39 -> 0.07
D44: Terminal Value | E44: 0 | F44: 0 | G44: 0 | H44: 0 | I44: 0 | J44: 0 | K44: =K37/E43 -> 25071.42857
D46: PV with Terminal Value (XNPV) | E46: =XNPV(E43,E44:K44,E36:K36) -> 17085.09265 | I46: 17085.09265
D48: Total Value | E48: =E46+E41 -> 22053.96898 | I48: 22053.96898
D50: Probability | E50: 1
D52: Weighted | E52: =E50*E48 -> 22053.96898
D54: Tax Rate | E54: 0.35
D56: After Tax | E56: =E52*(1-E54) -> 14335.07984 | I56: 14335.07984
D60: Probability Weighted | E60: Percent | F60: Probability | G60: After Tax Value
E61: 1 | F61: 0.1 | G61: =$E$56*F61*E61 -> 1433.507984 | K61: 1433.507984
E62: 0.7 | F62: 0.2 | G62: 2006.911177 | K62: 2006.911177
E63: 0.5 | F63: 0.4 | G63: 2867.015967 | K63: 2867.015967
E64: 0.2 | F64: 0.2 | G64: 573.4031935 | K64: 573.4031935
E65: 0 | F65: 0.1 | G65: 0 | K65: 0
G66: 0 | K66: 0
D67: ExpectedValue of Synergies | F67: =SUM(F61:F65) -> 1 | G67: =SUM(G61:G66) -> 6880.838321 | K67: 6880.838321
D69: Synergy Applied | G69: =E56 -> 14335.07984
D71: Premium | G71: =Premium!H60 -> -21665.5362
D73: Net Value of Transation | G73: =G69-G71 -> 36000.61604 | K73: 6537.501205
E104: 0.07328087581 | F104: 0.1810468697 | G104: 0.3311495039 | H104: 0.4812521382 | I104: 0.5580738967 | J104: 0.6004105371
E105: 0.07328087581 | F105: 0.1810468697 | G105: 0.3311495039 | H105: 0.4812521382 | I105: 0.5580738967 | J105: 0.6004105371

Sheet Exhibit 1
C1: Exhibit 1 Class I Railroad Operating and Financial Performance Metrics ($ millions)
F3: BNSF Railway | H3: Canadian National Railway | J3: Canadian Pacific Railway | L3: CSX Corp | N3: Kansas City Southern | P3: Norfolk Southern Corp | R3: Union Pacific Corp
C5: Operating Statistics (2014)
D6: Miles of Track Operated (miles) | F6: 32643 | H6: 19600 | J6: 12559 | L6: 20769 | N6: 3339 | P6: 19759 | R6: 31974
D7: Number of Employees (number) | F7: 46240 | H7: 24635 | J7: 14698 | L7: 28123 | N7: 3038 | P7: 29482 | R7: 49652
D8: Carloads Originated (thousands) | F8: 9321.774 | H8: 5625 | J8: 2684 | L8: 5190.323 | N8: 442.83 | P8: 5136.642 | R8: 7771.324
D9: Revenue Ton Miles (RTM) (billions) [1] | F9: 771.320806 | H9: 232.1 | J9: 149.849 | L9: 245.21218 | N9: 33.826142 | P9: 205.019983 | R9: 549.629439
D12: Productivity Measures (2014)
E13: 2004 Revenue | F13: 23035.998 | H13: 10477.77768 | J13: 5716.407469 | L13: 12342.404 | N13: 1359.384 | P13: 11624.231 | R13: 23975.236
E14: Revenue per RTM (cents) | F14: 2.9865651 | H14: 4.514337647 | J14: 3.814778523 | L14: 5.033356826 | N14: 4.018737934 | P14: 5.669803904 | R14: 4.362072753
E15: Revenue per Employee ($000) | F15: 498.1833478 | H15: 425.3207907 | J15: 388.9241713 | L15: 438.8722398 | N15: 447.4601712 | P15: 394.2823078 | R15: 482.8654636
E16: Carloads Origin. per Employee | F16: 201.5954585 | H16: 228.3336716 | J16: 182.6098789 | L16: 184.5579419 | N16: 145.7636603 | P16: 174.2297673 | R16: 156.5158302
E17: Employees per Billion RTM | F17: 59.94911539 | H17: 106.139595 | J17: 98.08540598 | L17: 114.6884302 | N17: 89.81219318 | P17: 143.8006167 | R17: 90.3372281
E18: Million RTM per Mile of Track | F18: 23.62898036 | H18: 11.84183673 | J18: 11.93160283 | L18: 11.80664356 | N18: 10.13062055 | P18: 10.37603032 | R18: 17.18988675
C20: Financial Statistics (9/30/15)
D21: Operating Revenues | F21: 22452 | H21: 10125.7 | J21: 5433.694741 | L21: 12222 | N21: 2463 | P21: 10863 | R21: 22758
D22: Operating Expenses | F22: 14832 | H22: 5996.6 | J22: 3309.9 | L22: 8482 | N22: 1654.9 | P22: 7730 | R22: 14251
E23: Operating Income | F23: 7620 | H23: 4129.1 | J23: 2123.794741 | L23: 3740 | N23: 808.4 | P23: 3133 | R23: 8507
E24: Operating Ratio (%) | F24: 0.6606092998 | H24: 0.5922158468 | J24: 0.6091435309 | L24: 0.6939944363 | N24: 0.6719041819 | P24: 0.7115898002 | R24: 0.6261973811
D26: EBITDA | F26: 7620 | H26: 5046.5 | J26: 2586.494741 | L26: 4926 | N26: 1086.4 | P26: 4140 | R26: 10491
D27: Net Income | F27: 6218 | H27: 2746.6 | J27: 1195.86385 | L27: 1993 | N27: 485.2 | P27: 1706 | R27: 5086
D28: Return on Sales (ROS) | F28: 0.2769463745 | H28: 0.2712503827 | J28: 0.220083002 | L28: 0.1630666012 | N28: 0.1969955339 | P28: 0.1570468563 | R28: 0.2234818525
D29: Return on Equity (ROE) | F29: 0.1781815056 | H29: 0.2543242342 | J29: 0.4012944024 | L29: 0.1709262436 | N29: 0.1159572688 | P29: 0.1406546294 | R29: 0.2469051896
D31: Cash | F31: 3040 | H31: 400.9 | J31: 493.4345586 | L31: 966 | N31: 116.6 | P31: 433 | R31: 1078
D32: Assets | F32: 81503 | H32: 26741.8 | J32: 13758.68737 | L32: 34015 | N32: 8323 | P32: 33527 | R32: 53763
D33: Debt | F33: 21882 | H33: 7827.8 | J33: 6477.355016 | L33: 10106 | N33: 2345 | P33: 9496 | R33: 13319
D34: Equity (book value) | F34: 34897 | H34: 10799.6 | J34: 2980.016275 | L34: 11660 | N34: 4184.3 | P34: 12129 | R34: 20599
D35: Debt-to-Total Cap (book) | F35: 0.3853889642 | H35: 0.4202304133 | J35: 0.68490015 | L35: 0.4643021226 | N35: 0.3591502918 | P35: 0.4391213873 | R35: 0.3926823516
D37: Equity (market value) | F37: n/a | H37: 46323.704 | J37: 23114.77 | L37: 26224.81 | N37: 9915.008 | P37: 23026.96 | R37: 75652.437
E38: Stock Price ($) | F38: n/a | H38: 58.46 | J38: 143.57 | L38: 26.9 | N38: 90.88 | P38: 76.4 | R38: 88.41
E39: Shares Outstanding (basic) | F39: n/a | H39: 792.4 | J39: 161 | L39: 974.9 | N39: 109.1 | P39: 301.4 | R39: 855.7
D40: Avg. Leverage (2 year, market) | F40: n/a | H40: 0.129 | J40: 0.152 | L40: 0.241 | N40: 0.16 | P40: 0.242 | R40: 0.116
D41: Avg. Leverage (5 year, market) | F41: n/a | H41: 0.154 | J41: 0.224 | L41: 0.275 | N41: 0.166 | P41: 0.261 | R41: 0.133
D43: Interest coverage | F43: 8.69213732 | H43: 12.51212121 | J43: 7.742598398 | L43: 7.030075188 | N43: 10.56732026 | P43: 5.889097744 | R43: 14.20200334
D44: EBIT | F44: 7849 | H44: 4129 | J44: 2123.794741 | L44: 3740 | N44: 808.4 | P44: 3133 | R44: 8507
D45: IntX | F45: 903 | H45: 330 | J45: 274.3 | L45: 532 | N45: 76.5 | P45: 532 | R45: 599
D46: S&P Credit Rating | F46: BBB+ | H46: A | J46: BBB+ | L46: BBB+ | N46: BBB- | P46: BBB+ | R46: A
D47: Equity Beta (vs. S&P 500)
E48: Two year weekly | F48: n/a | H48: 1.15 | J48: 1.28 | L48: 1.14 | N48: 1.3 | P48: 1.14 | R48: 1.15
E49: Five year monthly | F49: n/a | H49: 1.04 | J49: 1.31 | L49: 1.29 | N49: 1.24 | P49: 1.13 | R49: 1.02
D50: Ticker | F50: private | H50: CNI | J50: CP | L50: CSX | N50: KSU | P50: NSC | R50: UNP
C53: Source: Adapted from data from Capital IQ, accessed April 2016; Association of American Railroads, Analysis of Class I
C54: Railroads 2014, Policy and Economics department; and casewriter estimates.
C56: Note: [1] Revenue ton miles (RTM) equals the number of tons of paid cargo times the distance hauled in miles.

Sheet Exhibit 2
D1: Exhibit 2 Major Railroad Acquisitions and Transaction Multiples, 1995–2014
H4: Total Enterprise Value
D5: Acquirer | E5: Target | F5: Year | H5: EBITDA
D8: Burlington Northern | E8: Sante Fe Pacific | F8: 1995 | H8: 9x
D9: Union Pacific | E9: Chicago Northwestern | F9: 1995 | H9: 8x
D10: Union Pacific | E10: Southern Pacific | F10: 1996 | H10: 14x
D11: Norfolk Southern & CSX | E11: Conrail | F11: 1997 | H11: 14x
D12: Canadian National | E12: Illinois Central | F12: 1998 | H12: 10x
D13: Canadian National | E13: Wisconsin Central | F13: 2001 | H13: 10x
D14: Canadian National | E14: BC Rail | F14: 2004 | H14: 9x
D15: Canadian Pacific | E15: DM&E | F15: 2008 | H15: 13x
D16: Berkshire Hathaway | E16: BNSF | F16: 2010 | H16: 9x
D18: Average | H18: 10.7x
D21: Source: Thomas Wadewitz, Alex Johnson, and Michael Triano, UBS, Nov 10, 2015.
D22: Note: The TEV/EBITDA multiple was based on last (trailing) twelve months (LTM) data.

Sheet NS Historic ROIC
D1: Exhibit 3 Norfolk Southern Income Statements, 2011–2015 ($ millions)
K3: Years Ended December 31 | O3: LTM [1]
H4: 2010 | K4: 2011 | L4: 2012 | M4: 2013 | N4: 2014 | O4: Sep 2015
D6: Operating Revenue | H6: 9516 | K6: 11172 | L6: 11040 | M6: 11245 | N6: 11624 | O6: 10863
D7: Operating Expenses
E8: Compensation & benefits | H8: 2708 | K8: 2974 | L8: 2960 | M8: 3002 | N8: 2897 | O8: 2923
E9: Materials, services, and other | H9: 2234 | K9: 2534 | L9: 2463 | M9: 2457 | N9: 2627 | O9: 2713
E10: Fuel | H10: 1079 | K10: 1589 | L10: 1577 | M10: 1613 | N10: 1574 | O10: 1087
E11: Depreciation & amortization | H11: 819 | K11: 862 | L11: 916 | M11: 916 | N11: 951 | O11: 1007
F12: Total Operating Expense | H12: =SUM(H8:H11) -> 6840 | K12: 7959 | L12: 7916 | M12: 7988 | N12: 8049 | O12: 7730
D14: Operating Income | H14: =H6-H12 -> 2676 | K14: 3213 | L14: 3124 | M14: 3257 | N14: 3575 | O14: 3133
E15: Interest expense | H15: 462 | K15: 455 | L15: 495 | M15: 525 | N15: 545 | O15: 532
E16: Unusual items | H16: 153 | K16: 160 | L16: 129 | M16: 233 | N16: 104 | O16: 107
F17: Profit before tax | H17: =H14-H15+H16 -> 2367 | K17: 2918 | L17: 2758 | M17: 2965 | N17: 3134 | O17: 2708
E18: Income tax expense | H18: 871 | K18: 1002 | L18: 1009 | M18: 1055 | N18: 1134 | O18: 1002
F19: Net Income | H19: =H17-H18 -> 1496 | K19: 1916 | L19: 1749 | M19: 1910 | N19: 2000 | O19: 1706
E21: Income tax Rate | K21: =K18/K17 -> 0.3433858807 | L21: =L18/L17 -> 0.3658448151 | M21: 0.3558178752 | N21: 0.3618379068 | O21: 0.370014771
E22: NOPAT | K22: =K14*(1-K21) -> 2109.701165 | L22: =L14*(1-L21) -> 1981.100798 | M22: 2098.10118 | N22: 2281.429483 | O22: 1973.743722
D24: Per Share Items
E25: Basic Earnings per share | H25: 4.06 | K25: 5.52 | L25: 5.42 | M25: 6.1 | N25: 6.44 | O25: 5.59
E26: Dividends per share | K26: 1.66 | L26: 1.94 | M26: 2.04 | N26: 2.22 | O26: 2.34
D28: Cash Flow Items
E29: Capital Expenditures | H29: 1470 | K29: 2160 | L29: 2241 | M29: 1971 | N29: 2118 | O29: 2516
E30: Cap Exp to Depreciation | K30: =K29/K11 -> 2.505800464 | L30: =L29/L11 -> 2.44650655 | M30: 2.151746725 | N30: 2.227129338 | O30: 2.498510427
D32: Financial Ratios and Information
E33: Revenue Growth Rate [2] | H33: n/a | K33: 0.1740226986 | L33: -0.01181525242 | M33: 0.01856884058 | N33: 0.03370386839 | O33: -0.06635152557
E34: Operating Ratio | H34: =H12/H6 -> 0.7187894073 | K34: 0.712406015 | L34: 0.7170289855 | M34: 0.7103601601 | N34: 0.6924466621 | O34: 0.7115898002
E35: Effective Tax Rate | H35: =H18/H17 -> 0.3679763414 | K35: 0.3433858807 | L35: 0.3658448151 | M35: 0.3558178752 | N35: 0.3618379068 | O35: 0.370014771
E36: Return on Sales (ROS) | H36: =H19/H6 -> 0.1572089113 | K36: 0.171500179 | L36: 0.158423913 | M36: 0.1698532681 | N36: 0.1720578114 | O36: 0.1570468563
E37: Number of employees | K37: 30329 | L37: 30943 | M37: 30103 | N37: 29482 | O37: 30456
D40: Notes:
D41: [1] Last Twelve Months (LTM) ending September 2015.
D42: [2] For 2015, growth rate is calculated from previous LTM ending September 2014.
D44: Source: Adapted from data from Capital IQ, accessed April 2016.
D46: Exhibit 4 Norfolk Southern Balance Sheets, 2011–2015 ($ millions)
K48: Years Ended December 31 | O48: Sept
H49: 2010 | K49: 2011 | L49: 2012 | M49: 2013 | N49: 2014 | O49: 2015
D50: Assets | I50: Direct | J50: Financing
E51: Cash and ST investments | H51: 1110 | K51: 301 | L51: 668 | M51: 1561 | N51: 973 | O51: 433
E53: Cash/Revenues | K53: =K51/K6 -> 0.02694235589 | L53: =L51/L6 -> 0.06050724638 | M53: 0.1388172521 | N53: 0.08370612526 | O53: 0.03986007549
E54: Minimum Cash Percent | K54: 0.04 | L54: 0.04 | M54: 0.04 | N54: 0.04 | O54: 0.04
E55: Operating Cash | I55: 1 | K55: =K54*K6 -> 446.88 | L55: =L54*L6 -> 441.6 | M55: 449.8 | N55: 464.96 | O55: 434.52
E56: Surplus Cash | J56: -1 | K56: =K51-K55 -> -145.88 | L56: =L51-L55 -> 226.4 | M56: 1111.2 | N56: 508.04 | O56: -1.52
E59: Accounts receiveable | H59: 807 | I59: 1 | K59: 1022 | L59: 1109 | M59: 1024 | N59: 1055 | O59: 1103
E60: Inventory | I60: 1 | K60: 209 | L60: 216 | M60: 223 | N60: 236 | O60: 288
E61: Other current assets | H61: 554 | I61: 1 | K61: 219 | L61: 249 | M61: 267 | N61: 514 | O61: 178
F62: Total current assets | H62: =SUM(H51:H61) -> 2471 | K62: =SUM(K56:K61) -> 1304.12 | L62: =SUM(L56:L61) -> 1800.4 | M62: 2625.2 | N62: 2313.04 | O62: 1567.48
E63: Net PP&E | H63: 23231 | I63: 1 | K63: 24469 | L63: 25736 | M63: 26645 | N63: 27694 | O63: 28682
E64: Investments | H64: 2193 | I64: 1 | K64: 2234 | L64: 2300 | M64: 2439 | N64: 2679 | O64: 2740
E65: Other LT Assets | H65: 304 | I65: 1 | K65: 84 | L65: 64 | M65: 324 | N65: 49 | O65: 103
F66: Total assets | H66: =SUM(H62:H65) -> 28199 | K66: =SUM(K62:K65) -> 28091.12 | L66: =SUM(L62:L65) -> 29900.4 | M66: 32033.2 | N66: 32735.04 | O66: =SUM(O62:O65) -> 33092.48
D68: Liabilities and stock holders' equity
E69: Accounts payable | H69: 1181 | I69: -1 | K69: 1092 | L69: 1362 | M69: 1265 | N69: 1233 | O69: 1160
E70: Short-term debt | H70: 100 | J70: 1 | K70: 100 | L70: 200 | M70: 100 | N70: 100 | O70: 100
E71: Current maturities of LT debt | H71: 358 | J71: 1 | K71: 50 | L71: 50 | M71: 445 | N71: 2 | O71: 500
E72: Other current liabilities | H72: 443 | I72: -1 | K72: 459 | L72: 469 | M72: 495 | N72: 445 | O72: 607
F73: Total current liabilities | H73: =SUM(H69:H72) -> 2082 | K73: =SUM(K69:K72) -> 1701 | L73: =SUM(L69:L72) -> 2081 | M73: 2305 | N73: 1780 | O73: 2367
E74: Long-term debt | H74: 6567 | J74: 1 | K74: 7390 | L74: 8432 | M74: 8903 | N74: 8883 | O74: 8896
E75: Other liabilities | H75: 1793 | I75: -1 | K75: 2050 | L75: 2237 | M75: 1444 | N75: 1312 | O75: 1295
E76: Deferred income taxes | H76: 7088 | I76: -1 | K76: 7486 | L76: 7832 | M76: 8542 | N76: 8817 | O76: 8840
F77: Total Liabilities | H77: =SUM(H73:H76) -> 17530 | K77: 18627 | L77: 18627 | M77: 18627 | N77: 18627 | O77: 18627
E78: Sharholders equity | H78: 10669 | J78: 1 | K78: 9911 | L78: 9760 | M78: 11289 | N78: 12408 | O78: 12129
F79: Total liabilities & equity | H79: =H77+H78 -> 28199 | K79: =K77+K78 -> 28538 | L79: =L77+L78 -> 28387 | M79: 29916 | N79: 31035 | O79: =O77+O78 -> 30756
D81: Invested Capital
E82: Direct Method
E83: Indirect Method
K84: =K82-K83 -> 0 | L84: =L82-L83 -> 0 | M84: 0 | N84: 0 | O84: 0
E85: Average Invested Capital
E86: ROIC
E88: Revenue Growth | L88: =L6/K6-1 -> -0.01181525242 | M88: =M6/L6-1 -> 0.01856884058 | N88: 0.03370386839 | O88: -0.06546799725
D90: Financial Ratios & Other Information
E91: Current Ratio | H91: =H62/H73 -> 1.186839577 | K91: 1.029394474 | L91: 1.077366651 | M91: 1.334056399 | N91: 1.560674157 | O91: 0.8457963667
E92: Debt-to-Total Capital | H92: =(H70+H71+H74)/(H70+H71+H74+H78) -> 0.3970272409 | K92: 0.4320669303 | L92: 0.470773235 | M92: 0.4556107441 | N92: 0.4199971953 | O92: 0.4391213873
E93: S&P Long-term Debt Rating | K93: BBB+ | L93: BBB+ | M93: BBB+ | N93: BBB+ | O93: BBB+
E94: Shares outstanding | K94: 330.1 | L94: 314.5 | M94: 309.7 | N94: 307.4 | O94: 301.4
E95: Stock price per share | K95: 72.86 | L95: 61.84 | M95: 92.83 | N95: 109.61 | O95: 76.4
D98: Source: Adapted from data from Capital IQ, accessed April 2016.
D99: Note: The September figure is for the last twelve months ending September 30, 2015.
K140: 2109.701165 | L140: 1981.100798 | M140: 2098.10118 | N140: 2281.429483 | O140: 1973.743722

Sheet NS Projections
D1: Exhibit 6 Norfolk Southern Projections on a Stand-alone Basis, October 2015 ($ millions)
G3: Est. | H3: Projected (period ending 12/31)
G4: 2015 | H4: 2016 | I4: 2017 | J4: 2018 | K4: 2019 | L4: 2020 | M4: 2021
D7: Income statement items
D8: Revenue | G8: 10649 | H8: 10698 | I8: 11175 | J8: 11671 | K8: 12191 | L8: 12557 | M8: 12870.925
D9: Growth rate (%) | H9: 0.004601371021 | I9: 0.04458777342 | J9: 0.04438478747 | K9: 0.04455487962 | L9: 0.03002214749 | M9: 0.025
D11: Operating expenses | G11: 6548 | H11: 6397 | I11: 6570 | J11: 6808 | K11: 7049 | L11: 7139.466667 | M11: 7440.396333
D12: Depreciation [1] | G12: 1049 | H12: 1091 | I12: 1135 | J12: 1180 | K12: 1227 | L12: 1299.533333 | M12: 1312.528667
D13: EBIT | G13: 3052 | H13: 3210 | I13: 3470 | J13: 3683 | K13: 3915 | L13: 4118 | M13: 4118
D15: Operating ratio | G15: 0.7134003193 | H15: 0.6999439148 | I15: 0.6894854586 | J15: 0.6844314969 | K15: 0.6788614552 | L15: 0.6720554273 | M15: 0.6800540754
D17: Balance sheet items
D18: Capital expenditures | G18: 2365 | H18: 2070 | I18: 1910 | J18: 1930 | K18: 1930 | L18: 1949.3 | M18: 1968.793
D19: Net working capital [2] | G19: -191.682 | H19: -128.376 | I19: -134.1 | J19: -140.052 | K19: -146.292 | L19: -150.684 | M19: -154.4511
D22: Invested Capital - Start | G22: =F26 -> 0 | H22: =G26 -> 1124.318 | I22: =H26 -> 1974.942 | J22: 2615.842 | K22: 3225.79 | L22: 3782.498 | M22: 4281.580667
D23: Add: Capital Expenditure | G23: =G18 -> 2365 | H23: =H18 -> 2070 | I23: 1910 | J23: 1930 | K23: 1930 | L23: 1949.3 | M23: 1968.793
D24: Add: Working Capital | G24: =G19 -> -191.682 | H24: =H19 -> -128.376 | I24: -134.1 | J24: -140.052 | K24: -146.292 | L24: -150.684 | M24: -154.4511
D25: Less: Depreciation | G25: =-G12 -> -1049 | H25: =-H12 -> -1091 | I25: -1135 | J25: -1180 | K25: -1227 | L25: -1299.533333 | M25: -1312.528667
D26: Invested Capital - End | F26: ='NS Historic ROIC'!O82 -> 0 | G26: =SUM(G22:G25) -> 1124.318 | H26: =SUM(H22:H25) -> 1974.942 | I26: 2615.842 | J26: 3225.79 | K26: 3782.498 | L26: 4281.580667 | M26: 4783.3939
D27: Average | G27: =AVERAGE(G26,G22) -> 562.159 | H27: =AVERAGE(H26,H22) -> 1549.63 | I27: 2295.392 | J27: 2920.816 | K27: 3504.144 | L27: 4032.039333 | M27: 4532.487283
D29: Tax Rate | F29: 0.35 | G29: =$F$29 -> 0.35 | H29: =$F$29 -> 0.35 | I29: 0.35 | J29: 0.35 | K29: 0.35 | L29: 0.35 | M29: 0.35
D31: NOPAT | G31: =G13*(1-G29) -> 1983.8 | H31: =H13*(1-H29) -> 2086.5 | I31: 2255.5 | J31: 2393.95 | K31: 2544.75 | L31: 2676.7 | M31: 2676.7
D32: ROIC | G32: =G31/G27 -> 3.52889485 | H32: =H31/H27 -> 1.346450443 | I32: 0.9826208334 | J32: 0.8196168468 | K32: 0.726211594 | L32: 0.6638576112 | M32: 0.5905587446
D34: Cap Exp/Depreciation | G34: =G18/G12 -> 2.254528122 | H34: =H18/H12 -> 1.897341888 | I34: 1.682819383 | J34: 1.63559322 | K34: 1.572942135 | L34: 1.5 | M34: 1.5
D37: Source: UBS Global Research, Norfolk Southern Corporation, 10/28/15; and casewriter estimates.
D39: Notes:
D40: [1] Because the expected useful life of a railroad's fixed assets was very long (up to 40 years) and
D41: depreciation was based on historical cost, the ratio of Cap Ex to Depreciation was typically greater
D42: than one. Historically, the average ratio of Cap Ex to Depreciation for Norfolk Southern was about 1.5.
D43: The historical ratio of Cap Ex to Depreciation of 1.5 was expected to hold during the period after 2021.
D45: [2] The level of net working capital equals the sum of accounts receivable, inventory and other current assets
D46: minus the sum of accounts payable and other current liabilities.
G48: 1 | H48: 5
D49: Improved ROIC | G49: =G54 -> 3.52889485 | H49: 0.14
G52: 1 | H52: 2 | I52: 3 | J52: 4 | K52: 5 | L52: 6 | M52: 7
D54: ROIC Projected | G54: =G32 -> 3.52889485 | H54: =H32 -> 1.346450443 | I54: 0.9826208334 | J54: 0.8196168468 | K54: 0.726211594 | L54: 0.6638576112 | M54: 0.5905587446
D55: Improved ROIC | G55: =interpolate_look_up(G52,48:48,49:49) -> 3.52889485 | H55: =interpolate_look_up(H52,48:48,49:49) -> 1.574929244 | I55: =interpolate_look_up(I52,48:48,49:49) -> 0.7028835458 | J55: =interpolate_look_up(J52,48:48,49:49) -> 0.3136936346 | K55: =interpolate_look_up(K52,48:48,49:49) -> 0.14 | L55: =interpolate_look_up(L52,48:48,49:49) -> 0.14 | M55: =interpolate_look_up(M52,48:48,49:49) -> 0.14
D57: Difference | G57: =G55-G54 -> 0 | H57: =H55-H54 -> 0.2284788015 | I57: -0.2797372876 | J57: -0.5059232122 | K57: -0.586211594 | L57: -0.5238576112 | M57: -0.4505587446
D58: Difference x Invested Capital | G58: =G57*G27 -> 0 | H58: =H57*H27 -> 354.0576051 | I58: -642.106732 | J58: -1477.708613 | K58: -2054.16984 | L58: -2112.214493 | M58: -2042.15178
D59: Pre-tax | G59: =G58/(1-G29) -> 0 | H59: =H58/(1-H29) -> 544.7040078 | I59: -987.8565107 | J59: -2273.397866 | K59: -3160.261292 | L59: -3249.560759 | M59: -3141.77197

Sheet CP Historic ROIC
D1: Exhibit 7 Canadian Pacific Railway Income Statements, 2011–2015 ($ millions)
K3: Years Ended December 31 | O3: LTM [1]
H4: 2010 | K4: 2011 | L4: 2012 | M4: 2013 | N4: 2014 | O4: Sep 2015
D6: Operating Revenue | H6: 5008.043433 | K6: 5092.465078 | L6: 5713.5691 | M6: 5772.995973 | N6: 5716.407469 | O6: 5433.694741
D7: Operating Expenses
E8: Compensation & benefits | H8: 1438.8 | K8: 1402.7 | L8: 1478.8 | M8: 1297.1 | N8: 1164 | O8: 1079.3 | Q8: =O8/L8 -> 0.7298485258
E9: Materials, services, and other | H9: 1223.6 | K9: 1304.3 | L9: 1420.6 | M9: 1252.8 | N9: 1151.1 | O9: 1124.5
E10: Fuel | H10: 732 | K10: 952.2 | L10: 1002.3 | M10: 945.1 | N10: 905 | O10: 643.4
E11: Depreciation & amortization | H11: 491.7 | K11: 482 | L11: 540.8 | M11: 531.8 | N11: 476.7 | O11: 462.7
F12: Total Operating Expense | H12: =SUM(H8:H11) -> 3886.1 | K12: 4141.2 | L12: 4442.5 | M12: 4026.8 | N12: 3696.8 | O12: 3309.9
D14: Operating Income | H14: =H6-H12 -> 1121.943433 | K14: 951.2650776 | L14: 1271.0691 | M14: 1746.195973 | N14: 2019.607469 | O14: 2123.794741
E15: Interest expense | H15: 258.4 | K15: 247.9 | L15: 276.9 | M15: 261.7 | N15: 243.5 | O15: 274.3
E16: Unusual items | H16: 12.06515182 | K16: -17.7 | L16: -356.2 | M16: -425.5 | N16: -16.4 | O16: -141.3308904
F17: Profit before tax | H17: =H14-H15+H16 -> 875.6085848 | K17: 685.6650776 | L17: 637.9690999 | M17: 1058.995973 | N17: 1759.707469 | O17: 1708.16385
E18: Income tax expense | H18: 221.2 | K18: 124.9 | L18: 152.5 | M18: 235.3 | N18: 485.3 | O18: 512.3
F19: Net Income | H19: =H17-H18 -> 654.4085848 | K19: 560.7650776 | L19: 485.4690999 | M19: 823.6959726 | N19: 1274.407469 | O19: 1195.86385
D21: Tax Rate | K21: =K18/K17 -> 0.1821589054 | L21: =L18/L17 -> 0.2390397905 | M21: 0.222191591 | N21: 0.2757844747 | O21: 0.299912681
D22: NOPAT | K22: =K14*(1-K21) -> 777.9836723 | L22: =L14*(1-L21) -> 967.2330085 | M22: 1358.205911 | N22: 1462.631084 | O22: 1486.841766
D24: Per Share Items
E25: Basic Earnings per share | H25: 3.880957167 | K25: 3.314971472 | L25: 2.829194884 | M25: 4.706502505 | N25: 7.374338336 | O25: 7.266854597
E26: Dividends per share | K26: 1.15 | L26: 1.35 | M26: 1.32 | N26: 1.21 | O26: 1.12
Q27: Earnings | R27: =K19*10000000 -> 5607650776
D28: Cash Flow Items | Q28: Earnings/Share | R28: =K25 -> 3.314971472
E29: Capital Expenditures | H29: 729.9 | K29: 1086 | L29: 1151.7 | M29: 1163.4 | N29: 1251.2 | O29: 1210.4 | R29: =R27/K25 -> 1691613585
E30: Cap Exp/Depreciation | K30: =K29/K11 -> 2.253112033 | L30: =L29/L11 -> 2.129622781 | M30: 2.187664536 | N30: 2.624711559 | O30: 2.61594986
D32: Financial Ratios and Information
E33: Revenue Growth Rate [2] | H33: n/a | K33: 0.01685721096 | L33: 0.1219652983 | M33: 0.01040100709 | N33: -0.009802276617 | O33: -0.087
E34: Operating Ratio | H34: =H12/H6 -> 0.7759717047 | K34: 0.8132014529 | L34: 0.7775350087 | M34: 0.6975234383 | N34: 0.6466998757 | O34: 0.6091435309
E35: Effective Tax Rate | H35: =H18/H17 -> 0.2526242934 | K35: 0.1821589054 | L35: 0.2390397905 | M35: 0.222191591 | N35: 0.2757844747 | O35: 0.299912681
E36: Return on Sales (ROS) | H36: =H19/H6 -> 0.1306715075 | K36: 0.110116627 | L36: 0.08496774808 | M36: 0.14268085 | N36: 0.2229385284 | O36: 0.220083002
E37: Number of employees | H37: 13879 | K37: 14169 | L37: 14594 | M37: 14977 | N37: 14698 | O37: 14698
D40: Notes:
D41: [1] Last Twelve Months (LTM) ending September 2015.
D42: [2] For 2015, growth rate is calculated from previous LTM ending September 2014.
D44: Source: Adapted from data from Capital IQ, accessed April 2016.
D48: Exhibit 8 Canadian Pacific Railway Balance Sheets, 2011–2015 ($ millions)
K50: Years Ended December 31 | O50: Sept
H51: 2010 | I51: Direct | J51: Financing | K51: 2011 | L51: 2012 | M51: 2013 | N51: 2014 | O51: 2015
D52: Assets
E53: Cash and ST investments | H53: 362.9599838 | K53: 46.23253982 | L53: 334.0857788 | M53: 448.0590385 | N53: 195.1522792 | O53: 493.4345586
E54: Percent of Revenues | K54: =K53/K6 -> 0.00907861696 | L54: =L53/L6 -> 0.05847234416 | M54: 0.07761291375 | N54: 0.03413897281 | O54: 0.09081013605
E55: Minimum Cash Percent | K55: 0.04 | L55: 0.04 | M55: 0.04 | N55: 0.04 | O55: 0.04
E57: Operating Cash | I57: 1 | K57: =K55*K6 -> 203.6986031 | L57: =L55*L6 -> 228.542764 | M57: 230.9198389 | N57: 228.6562988 | O57: 217.3477896
E58: Surplus Cash | J58: -1 | K58: =K53-K57 -> -157.4660633 | L58: =L53-L57 -> 105.5430148 | M58: 217.1391996 | N58: -33.50401961 | O58: 276.086769
E60: Accounts receiveable | H60: 461.492057 | I60: 1 | K60: 509.5416091 | L60: 547.780286 | M60: 545.9542906 | N60: 606.1809733 | O60: 538.9708795
E61: Inventory | I61: 1 | K61: 135.7 | L61: 136.4 | M61: 155.3 | N61: 152.8 | O61: 129.9
E62: Other current assets | H62: 386.0848581 | I62: 1 | K62: 150.5482785 | L62: 315.0672686 | M62: 760.5853875 | N62: 100.2071584 | O62: 110.4720543
F63: Total current assets | H63: =SUM(H53:H62) -> 1210.536899 | K63: 842.0224274 | L63: 1333.333333 | M63: 1909.898717 | N63: 1054.340411 | O63: 1272.777492
E64: Net PP&E | H64: 12062.13553 | I64: 1 | K64: 12543.77336 | L64: 13055.43015 | M64: 12544.71178 | N64: 12467.29472 | O64: 11766.28671
E65: Investments | H65: 145.7872511 | I65: 1 | K65: 164.273067 | L65: 83.27062955 | M65: 86.59964609 | N65: 96.71263392 | O65: 107.4955771
E66: Other LT Assets | H66: 331.7916749 | I66: 1 | J66: 0 | K66: 329.5298051 | L66: 302.9847003 | M66: 1482.548289 | N66: 672.6709091 | O66: 612.1275917
F67: Total assets | H67: =SUM(H63:H66) -> 13750.25135 | K67: 13879.59866 | L67: 14775.01881 | M67: 16023.75843 | N67: 14291.01867 | O67: 13758.68737
D69: Liabilities and stock holders' equity | K69: 0 | L69: 0 | M69: 0 | N69: 0 | O69: 0
E70: Accounts payable | H70: 227 | I70: -1 | K70: 381 | L70: 322 | M70: 337 | N70: 351 | O70: 270.975
E71: Short-term debt | H71: 0 | J71: 1 | K71: 26.55911862 | L71: 0 | M71: 0 | N71: 0 | O71: 0
E72: Current maturities of LT debt | H72: 283.5310677 | J72: 1 | K72: 49.183553 | L72: 54.17607224 | M72: 177.9057947 | N72: 115.7097584 | O72: 21.64841483
E73: Other current liabilities | H73: 786.4727525 | I73: -1 | K73: 733.499311 | L73: 857.8344621 | M73: 782.2062957 | N73: 751.6967278 | O73: 913.715839
F74: Total current liabilities | H74: =SUM(H70:H73) -> 1297.00382 | K74: 1190.241983 | L74: 1234.010534 | M74: 1297.11209 | N74: 1218.406486 | O74: 1206.339254
E75: Long-term debt | H75: 4054.896439 | J75: 1 | K75: 4618.335627 | L75: 4651.116128 | M75: 4377.04733 | N75: 4857.219337 | O75: 6455.706601
E76: Other liabilities | H76: 1592.60004 | I76: 0 | J76: 1 | K76: 1708.636631 | L76: 1677.451718 | M76: 936.5939985 | N76: 1024.981218 | O76: 825.6257517
E77: Deferred income taxes | H77: 1955.560024 | I77: -1 | K77: 1789.297658 | L77: 2098.821169 | M77: 2732.595354 | N77: 2346.144878 | O77: 2290.999486
F78: Total Liabilities | H78: =SUM(H74:H77) -> 8900.060323 | K78: 9306.511899 | L78: 9661.399549 | M78: 9343.348773 | N78: 9446.75192 | O78: 10778.67109
E79: Sharholders equity | H79: 4850.19103 | J79: 1 | K79: 4573.086758 | L79: 5113.619263 | M79: 6680.409656 | N79: 4844.266753 | O79: 2980.016275
F80: Total liabilities & equity | H80: =H78+H79 -> 13750.25135 | K80: 13879.59866 | L80: 14775.01881 | M80: 16023.75843 | N80: 14291.01867 | O80: 13758.68737
E82: Direct | K82: =SUMPRODUCT(K57:K80*$I$57:$I$80) -> 11133.26775 | L82: =SUMPRODUCT(L57:L80*$I$57:$I$80) -> 11390.82017 | M82: =SUMPRODUCT(M57:M80*$I$57:$I$80) -> 11954.81758 | N82: =SUMPRODUCT(N57:N80*$I$57:$I$80) -> 10875.68109 | O82: =SUMPRODUCT(O57:O80*$I$57:$I$80) -> 10006.91027
E83: Financing | K83: =SUMPRODUCT(K57:K80*$J$57:$J$80) -> 11133.26775 | L83: =SUMPRODUCT(L57:L80*$J$57:$J$80) -> 11390.82017 | M83: =SUMPRODUCT(M57:M80*$J$57:$J$80) -> 11954.81758 | N83: =SUMPRODUCT(N57:N80*$J$57:$J$80) -> 10875.68109 | O83: =SUMPRODUCT(O57:O80*$J$57:$J$80) -> 10006.91027
E85: Average | K85: =AVERAGE(J83:K83) -> 11133.26775 | L85: =AVERAGE(K83:L83) -> 11262.04396 | M85: 11672.81887 | N85: 11415.24933 | O85: 10441.29568
E86: ROIC | K86: =K22/K85 -> 0.0698791846 | L86: =L22/L85 -> 0.0858843219 | M86: 0.1163562912 | N86: 0.1281295784 | O86: 0.1424001208
D88: Financial Ratios & Other Information
E89: Current Ratio | H89: =H63/H74 -> 0.9333333333 | K89: 0.7074380165 | L89: 1.080487805 | M89: 1.472423803 | N89: 0.8653437279 | O89: 1.055074257
E90: Debt-to-Total Capital | H90: =(H71+H72+H75)/(H71+H72+H75+H79) -> 0.4721523143 | K90: 0.5065279694 | L90: 0.4792071115 | M90: 0.4054121984 | N90: 0.506552907 | O90: 0.68490015
E91: S&P Long-term Debt Rating | H91: BBB | K91: BBB- | L91: BBB- | M91: BBB- | N91: BBB+ | O91: BBB+
E92: Shares outstanding | H92: 169.2 | K92: 170.4 | L92: 174.2 | M92: 175.2 | N92: 171 | O92: 161
E93: Stock price per share | K93: 67.67 | L93: 101.62 | M93: 151.32 | N93: 192.69 | O93: 143.57
D96: Source: Adapted from data from Capital IQ, accessed April 2016.
D97: Note: The September figure is for the last twelve months ending September 30, 2015
D99: ROIC and Growth

Sheet Exhibit 11
A1: Exhibit 11 Current Market Rates as of December 18, 2015
B4: US Treasury Yields | E4: Corporate Bond Yields
B5: (constant maturity) | E5: (10-year maturity)
B6: Maturity | C6: Yield | E6: Credit Rating | F6: Yield
B8: 6 months | C8: 0.0047 | E8: AAA | F8: 0.0293
B9: 1 year | C9: 0.0067 | E9: AA | F9: 0.0327
B10: 2 years | C10: 0.0097 | E10: A | F10: 0.0343
B11: 3 years | C11: 0.0127 | E11: BBB | F11: 0.0428
B12: 5 years | C12: 0.0167 | E12: BB | F12: 0.0621
B13: 10 years | C13: 0.0219 | E13: B | F13: 0.0831
B14: 30 years | C14: 0.029 | E14: CCC | F14: =C13+0.1665 -> 0.1884
A17: Source: Compiled from Federal Reserve, Selected Interest Rates (Daily)-H.15; Bonds.

Sheet Graph
D2: ROIC
E3: 2011 | F3: 2012 | G3: 2013 | H3: 2014 | I3: Sep 2015 | J3: ='NS Projections'!G4 -> 2015 | K3: ='NS Projections'!H4 -> 2016 | L3: ='NS Projections'!I4 -> 2017 | M3: ='NS Projections'!J4 -> 2018 | N3: ='NS Projections'!K4 -> 2019 | O3: ='NS Projections'!L4 -> 2020 | P3: ='NS Projections'!M4 -> 2021
D4: Historic | E4: ='NS Historic ROIC'!K86 -> 0 | F4: ='NS Historic ROIC'!L86 -> 0 | G4: ='NS Historic ROIC'!M86 -> 0 | H4: ='NS Historic ROIC'!N86 -> 0 | I4: ='NS Historic ROIC'!O86 -> 0
D5: Projected | J5: ='NS Projections'!G32 -> 3.52889485 | K5: ='NS Projections'!H32 -> 1.346450443 | L5: ='NS Projections'!I32 -> 0.9826208334 | M5: ='NS Projections'!J32 -> 0.8196168468 | N5: ='NS Projections'!K32 -> 0.726211594 | O5: ='NS Projections'!L32 -> 0.6638576112 | P5: ='NS Projections'!M32 -> 0.5905587446
D26: Growth
E27: 2011 | F27: 2012 | G27: 2013 | H27: 2014 | I27: Sep 2015 | J27: =J$3 -> 2015 | K27: =K$3 -> 2016 | L27: 2017 | M27: 2018 | N27: 2019 | O27: 2020 | P27: 2021
D28: Historic | E28: ='NS Historic ROIC'!K88 -> 0 | F28: ='NS Historic ROIC'!L88 -> -0.01181525242 | G28: ='NS Historic ROIC'!M88 -> 0.01856884058 | H28: ='NS Historic ROIC'!N88 -> 0.03370386839 | I28: ='NS Historic ROIC'!O88 -> -0.06546799725
D29: Projected | J29: ='NS Projections'!G9 -> 0 | K29: ='NS Projections'!H9 -> 0.004601371021 | L29: ='NS Projections'!I9 -> 0.04458777342 | M29: ='NS Projections'!J9 -> 0.04438478747 | N29: ='NS Projections'!K9 -> 0.04455487962 | O29: ='NS Projections'!L9 -> 0.03002214749 | P29: ='NS Projections'!M9 -> 0.025
D51: Cap Exp/Dep
E52: 2011 | F52: 2012 | G52: 2013 | H52: 2014 | I52: Sep 2015 | J52: =J$3 -> 2015 | K52: =K$3 -> 2016 | L52: 2017 | M52: 2018 | N52: 2019 | O52: 2020 | P52: 2021
D53: Historic | E53: ='NS Historic ROIC'!K30 -> 2.505800464 | F53: ='NS Historic ROIC'!L30 -> 2.44650655 | G53: ='NS Historic ROIC'!M30 -> 2.151746725 | H53: ='NS Historic ROIC'!N30 -> 2.227129338 | I53: ='NS Historic ROIC'!O30 -> 2.498510427
D54: Projected | J54: ='NS Projections'!G34 -> 2.254528122 | K54: ='NS Projections'!H34 -> 1.897341888 | L54: ='NS Projections'!I34 -> 1.682819383 | M54: ='NS Projections'!J34 -> 1.63559322 | N54: ='NS Projections'!K34 -> 1.572942135 | O54: ='NS Projections'!L34 -> 1.5 | P54: ='NS Projections'!M34 -> 1.5

Sheet Exchange Example
B2: Pre-Merger
E3: Shares | F3: Price | G3: Market Cap | H3: CoC | I3: CF | J3: Value
D4: A Company | E4: 1000 | F4: =J4/E4 -> 200 | G4: =E4*F4 -> 200000 | H4: 0.05 | I4: 10000 | J4: =I4/H4 -> 200000
D5: T Company | E5: 800 | F5: =J5/E5 -> 180 | G5: =E5*F5 -> 144000 | H5: 0.05 | I5: 7200 | J5: =I5/H5 -> 144000
D7: Pre-transaction Ratio | F7: =F5/F4 -> 0.9
B9: Synergy and Premium
D10: Synergy | G10: 100000
D11: Market Value | G11: =G4+G5+G10 -> 444000
D12: Premium | F12: 0.5 | G12: =F12*G5 -> 72000
D13: Exchange Offer with Premium | F13: =F7*(1+F12) -> 1.35
B15: Share Distribution
D16: T Company | F16: =F13*E5 -> 1080 | G16: =F16/F18 -> 0.5192307692
D17: A Company | F17: =E4 -> 1000 | G17: =F17/F18 -> 0.4807692308
D18: Total | F18: =F16+F17 -> 2080
B20: Value of New Company
D21: T Company Value | F21: =F16 -> 1080 | G21: =G11*G16 -> 230538.4615
D22: T Price Price | G22: =G21/E5 -> 288.1730769
D23: T Implied Premium | G23: =G22/F5-1 -> 0.6009615385
D25: A Company Value | F25: =F17 -> 1000 | G25: =G11*G17 -> 213461.5385
D26: A Price | G26: =G25/E4 -> 213.4615385
D27: A Price Decline | G27: =G26/F4-1 -> 0.06730769231

Sheet Exelon
D2: Low | E2: High
C3: Synergies | D3: 180 | E3: 300 | H3: Target Price | J3: 22
H4: Target Shares | J4: 264
C5: Premium without A price Decline | D5: 5800 | H5: Market Cap | J5: =J3*J4 -> 5808
C7: Premium with A price Decline | D7: =E7*D5 -> 5800 | E7: 1
C9: Cost to Achieve | D9: 100
C11: Probability of Achieving | D11: 1
C13: Tax Rate | D13: 0
D15: 1 | E15: 10
C16: Applied | D16: =E3 -> 300 | E16: =E3 -> 300
D18: 1 | E18: 2 | F18: 3 | G18: 4 | H18: 5 | I18: 6 | J18: 7 | K18: 8 | L18: 9 | M18: 10
C19: Synergy | D19: =interpolate_look_up(D18,15:15,16:16) -> 300 | E19: =interpolate_look_up(E18,15:15,16:16) -> 300 | F19: =interpolate_look_up(F18,15:15,16:16) -> 300 | G19: =interpolate_look_up(G18,15:15,16:16) -> 300 | H19: =interpolate_look_up(H18,15:15,16:16) -> 300 | I19: =interpolate_look_up(I18,15:15,16:16) -> 300 | J19: =interpolate_look_up(J18,15:15,16:16) -> 300 | K19: =interpolate_look_up(K18,15:15,16:16) -> 300 | L19: =interpolate_look_up(L18,15:15,16:16) -> 300 | M19: =interpolate_look_up(M18,15:15,16:16) -> 300
C21: After-Tax | D21: =D19*(1-$D$13)*$D$11 -> 300 | E21: =E19*(1-$D$13)*$D$11 -> 300 | F21: 300 | G21: 300 | H21: 300 | I21: 300 | J21: 300 | K21: 300 | L21: 300 | M21: 300
C23: Discount Rate | D23: 0.105
C25: NPV | D25: =NPV(D23,D21:M21) -> 1804.431822
C26: Terminal | D26: =NPV(D23,E26:M26) -> 1163.245694 | E26: 0 | F26: 0 | G26: 0 | H26: 0 | I26: 0 | J26: 0 | K26: 0 | L26: 0 | M26: =M21/$D$23 -> 2857.142857
C27: Total | D27: =SUM(D25:D26) -> 2967.677516

Sheet Download

Sheet Session 3 Questions
B3: Question 1
B5: Go to Summary Page
B6: Compute the P/E ratio with the assumptions from the value driver formula
B8: Question 2
B10: Go to Simulation Model
B11: Compute the ROIC with Interpoilation
B12: Compute the Value of Dividends
B14: Question 3
B16: Retrieve Data on Companies
B19: Queston 4

Sheet Tickers
D3: Yahoo | E3: Market Watch
C4: BNSF Railway
C5: Canadian National Railway | D5: CNR.TO | E5: https://www.marketwatch.com/investing/stock/cnr/financials/balance-sheet?countrycode=ca
C6: Canadian Pacific Railway | D6: CP.TO | E6: CP
C7: CSX Corp | D7: CSX | E7: CSX
C8: Norfolk Southern Corp | D8: NSC | E8: NSC
C9: Union Pacific Corp | D9: UNP | E9: UNP
C10: Nestle | D10: NSRGY | E10: NSRGY
C11: Amazon | D11: AMZN | E11: AMZN
C12: GE | D12: GE | E12: GE
